[Event "Early-Titled-Tuesday-Blitz-March-19-2024"]
[Site "Chess.com"]
[Date "2024.03.19"]
[Round "4"]
[White "baki83"]
[Black "Njal28"]
[Result "1-0"]
[WhiteElo "2863"]
[BlackElo "3063"]
[TimeControl "180+1"]
[EndTime "8:39:50 PDT"]
[Termination "baki83 won on time"]

1. e4 {[%clk 0:03:00.9]} 1... e5 {[%clk 0:03:00.2]} 2. Nf3 {[%clk 0:03:00.8]}
2... Nc6 {[%clk 0:03:00.9]} 3. Bb5 {[%clk 0:03:00.7]} 3... a6 {[%clk 0:03:01.5]}
4. Ba4 {[%clk 0:03:00.6]} 4... Nf6 {[%clk 0:03:00.7]} 5. O-O {[%clk 0:03:00.7]}
5... d6 {[%clk 0:03:01.5]} 6. Re1 {[%clk 0:03:00.6]} 6... Bd7 {[%clk 0:03:01.9]}
7. c3 {[%clk 0:02:59.7]} 7... g6 {[%clk 0:03:02.5]} 8. d4 {[%clk 0:02:59.8]}
8... Bg7 {[%clk 0:03:03.2]} 9. Nbd2 {[%clk 0:02:59.4]} 9... O-O {[%clk
0:02:59.7]} 10. Nf1 {[%clk 0:02:58.4]} 10... Nh5 {[%clk 0:02:38.6]} 11. Bg5
{[%clk 0:02:55.1]} 11... Qe8 {[%clk 0:02:37.3]} 12. Bb3 {[%clk 0:02:22.4]} 12...
Kh8 {[%clk 0:02:34.2]} 13. h3 {[%clk 0:02:15.8]} 13... f6 {[%clk 0:02:31.3]} 14.
Be3 {[%clk 0:02:15.8]} 14... f5 {[%clk 0:02:29.1]} 15. exf5 {[%clk 0:02:09]}
15... gxf5 {[%clk 0:02:27]} 16. dxe5 {[%clk 0:02:08.7]} 16... dxe5 {[%clk
0:02:25.7]} 17. Ng5 {[%clk 0:01:44]} 17... Nd8 {[%clk 0:01:45.3]} 18. Bc5 {[%clk
0:01:35.7]} 18... Rf6 {[%clk 0:01:45.5]} 19. Rxe5 {[%clk 0:01:29]} 19... Qxe5
{[%clk 0:01:38.8]} 20. Qxh5 {[%clk 0:00:46.7]} 20... Rh6 {[%clk 0:01:38.8]} 21.
Qf7 {[%clk 0:00:46.2]} 21... Qe8 {[%clk 0:01:39.4]} 22. Qxe8+ {[%clk 0:00:41.9]}
22... Bxe8 {[%clk 0:01:40.3]} 23. Re1 {[%clk 0:00:41.5]} 23... Bc6 {[%clk
0:01:15.7]} 24. Ng3 {[%clk 0:00:27.5]} 24... Rg6 {[%clk 0:01:13.1]} 25. h4
{[%clk 0:00:26.2]} 25... h6 {[%clk 0:01:07.1]} 26. Nh3 {[%clk 0:00:26.5]} 26...
b6 {[%clk 0:01:02.8]} 27. Be7 {[%clk 0:00:19.1]} 27... Nb7 {[%clk 0:00:42.3]}
28. Nf4 {[%clk 0:00:16.7]} 28... Rg4 {[%clk 0:00:43]} 29. Ngh5 {[%clk
0:00:16.2]} 29... Nc5 {[%clk 0:00:21.5]} 30. Bd1 {[%clk 0:00:16.1]} 30... Rxf4
{[%clk 0:00:12.6]} 31. Nxf4 {[%clk 0:00:15.9]} 31... Re8 {[%clk 0:00:12.6]} 32.
Re3 {[%clk 0:00:15.7]} 32... Ne4 {[%clk 0:00:12.4]} 33. f3 {[%clk 0:00:15.2]}
33... Rxe7 {[%clk 0:00:12.5]} 34. Ng6+ {[%clk 0:00:15.1]} 34... Kh7 {[%clk
0:00:10.2]} 35. Nxe7 {[%clk 0:00:15.7]} 35... Bf8 {[%clk 0:00:09.5]} 36. Nxc6
{[%clk 0:00:15.2]} 36... Bc5 {[%clk 0:00:10.4]} 37. Nd4 {[%clk 0:00:14.5]} 1-0

[Event "Early-Titled-Tuesday-Blitz-March-19-2024"]
[Site "Chess.com"]
[Date "2024.03.19"]
[Round "4"]
[White "secrethawk1"]
[Black "Matrix3x3a"]
[Result "0-1"]
[WhiteElo "2437"]
[BlackElo "2627"]
[TimeControl "180+1"]
[EndTime "8:39:52 PDT"]
[Termination "Matrix3x3a won on time"]

1. d4 {[%clk 0:03:00.9]} 1... Nf6 {[%clk 0:02:59.7]} 2. Bf4 {[%clk 0:03:01.2]}
2... d5 {[%clk 0:02:59.4]} 3. e3 {[%clk 0:03:01.4]} 3... c5 {[%clk 0:02:59.1]}
4. c3 {[%clk 0:03:01.1]} 4... Nc6 {[%clk 0:02:58.8]} 5. Nd2 {[%clk 0:03:01.5]}
5... Qb6 {[%clk 0:02:58.2]} 6. Qc2 {[%clk 0:02:57.2]} 6... cxd4 {[%clk
0:02:48.7]} 7. exd4 {[%clk 0:02:54.7]} 7... Bg4 {[%clk 0:02:47.3]} 8. Ngf3
{[%clk 0:02:51.1]} 8... e6 {[%clk 0:02:39.6]} 9. h3 {[%clk 0:02:46.2]} 9... Bf5
{[%clk 0:02:38.6]} 10. Bd3 {[%clk 0:02:34.9]} 10... Bxd3 {[%clk 0:02:37.7]} 11.
Qxd3 {[%clk 0:02:35.8]} 11... Be7 {[%clk 0:02:37]} 12. O-O {[%clk 0:02:19.1]}
12... O-O {[%clk 0:02:36.4]} 13. b4 {[%clk 0:02:16.1]} 13... Qd8 {[%clk
0:02:33.4]} 14. a4 {[%clk 0:02:15.3]} 14... a6 {[%clk 0:02:29.5]} 15. Nb3 {[%clk
0:02:08.8]} 15... Ne4 {[%clk 0:02:29.5]} 16. Nc5 {[%clk 0:02:07.5]} 16... Nxc5
{[%clk 0:02:27.7]} 17. bxc5 {[%clk 0:02:04.4]} 17... b6 {[%clk 0:02:27.3]} 18.
cxb6 {[%clk 0:02:01.8]} 18... Qxb6 {[%clk 0:02:26.9]} 19. Rfb1 {[%clk
0:02:01.3]} 19... Qd8 {[%clk 0:02:24.5]} 20. Ne5 {[%clk 0:01:56.4]} 20... Na5
{[%clk 0:02:23.5]} 21. Bh2 {[%clk 0:01:34.1]} 21... Bf6 {[%clk 0:02:20]} 22. Nf3
{[%clk 0:01:14.1]} 22... Nc4 {[%clk 0:02:13.2]} 23. Nd2 {[%clk 0:01:10.2]} 23...
Rc8 {[%clk 0:02:10.7]} 24. Rb4 {[%clk 0:01:06.2]} 24... Be7 {[%clk 0:02:07.9]}
25. Rb7 {[%clk 0:01:04.7]} 25... Bd6 {[%clk 0:02:06]} 26. Bxd6 {[%clk
0:01:01.9]} 26... Nxd6 {[%clk 0:02:03.4]} 27. Ra7 {[%clk 0:00:59.5]} 27... a5
{[%clk 0:02:01.3]} 28. Rb1 {[%clk 0:00:55]} 28... Ra8 {[%clk 0:01:56.3]} 29.
Rxa8 {[%clk 0:00:52.7]} 29... Qxa8 {[%clk 0:01:57.2]} 30. Rb6 {[%clk 0:00:51.6]}
30... Qd8 {[%clk 0:01:47]} 31. Qa6 {[%clk 0:00:50]} 31... Qg5 {[%clk 0:01:29.9]}
32. Rxd6 {[%clk 0:00:32.4]} 32... Qxd2 {[%clk 0:01:28.8]} 33. Qxa5 {[%clk
0:00:32.2]} 33... h5 {[%clk 0:01:13]} 34. Qb4 {[%clk 0:00:16.2]} 34... Qe1+
{[%clk 0:01:01.6]} 35. Kh2 {[%clk 0:00:15.3]} 35... Qxf2 {[%clk 0:01:01.6]} 36.
a5 {[%clk 0:00:15.6]} 36... Qf4+ {[%clk 0:01:00.5]} 37. Kg1 {[%clk 0:00:14.1]}
37... Rc8 {[%clk 0:00:55.8]} 38. a6 {[%clk 0:00:12.6]} 38... Qc1+ {[%clk
0:00:54.3]} 39. Kh2 {[%clk 0:00:11.8]} 39... Qf4+ {[%clk 0:00:42.3]} 40. Kg1
{[%clk 0:00:09.2]} 40... Qe3+ {[%clk 0:00:40.9]} 41. Kh2 {[%clk 0:00:08.8]}
41... Rxc3 {[%clk 0:00:39.1]} 42. Rd8+ {[%clk 0:00:06]} 42... Kh7 {[%clk
0:00:38]} 43. Qb8 {[%clk 0:00:04.4]} 43... Rc1 {[%clk 0:00:34.3]} 44. Rh8+
{[%clk 0:00:01.9]} 44... Kg6 {[%clk 0:00:33.7]} 0-1

[Event "Early-Titled-Tuesday-Blitz-March-19-2024"]
[Site "Chess.com"]
[Date "2024.03.19"]
[Round "4"]
[White "grandcoach"]
[Black "HandKnit"]
[Result "1-0"]
[WhiteElo "2263"]
[BlackElo "2497"]
[TimeControl "180+1"]
[EndTime "8:39:52 PDT"]
[Termination "grandcoach won by resignation"]

1. e4 {[%clk 0:03:00.9]} 1... d6 {[%clk 0:02:57.5]} 2. d4 {[%clk 0:02:59.9]}
2... Nf6 {[%clk 0:02:58]} 3. Nc3 {[%clk 0:02:59.5]} 3... e5 {[%clk 0:02:58.6]}
4. Nf3 {[%clk 0:02:58.1]} 4... Nbd7 {[%clk 0:02:58.2]} 5. Bc4 {[%clk 0:02:56.9]}
5... Be7 {[%clk 0:02:56.7]} 6. O-O {[%clk 0:02:54.1]} 6... O-O {[%clk
0:02:56.3]} 7. Re1 {[%clk 0:02:51.6]} 7... c6 {[%clk 0:02:56.5]} 8. a4 {[%clk
0:02:51]} 8... a5 {[%clk 0:02:55.5]} 9. Bb3 {[%clk 0:02:37.4]} 9... exd4 {[%clk
0:02:54.3]} 10. Nxd4 {[%clk 0:02:33.4]} 10... Nc5 {[%clk 0:02:54.6]} 11. Ba2
{[%clk 0:02:19.5]} 11... Re8 {[%clk 0:02:54.7]} 12. h3 {[%clk 0:01:59.7]} 12...
Bf8 {[%clk 0:02:54.5]} 13. Qf3 {[%clk 0:01:52.4]} 13... d5 {[%clk 0:02:32.7]}
14. e5 {[%clk 0:01:41.4]} 14... Nfd7 {[%clk 0:02:29.1]} 15. Bf4 {[%clk
0:01:37.2]} 15... Qb6 {[%clk 0:02:19.7]} 16. Rab1 {[%clk 0:01:27.9]} 16... Nxa4
{[%clk 0:02:05.2]} 17. Nf5 {[%clk 0:01:03.9]} 17... Nac5 {[%clk 0:01:38.2]} 18.
Qg3 {[%clk 0:00:45.5]} 18... Kh8 {[%clk 0:01:27.9]} 19. Nd6 {[%clk 0:00:35.1]}
19... Bxd6 {[%clk 0:01:23.6]} 20. exd6 {[%clk 0:00:36]} 20... Ne6 {[%clk
0:01:23.1]} 21. Be5 {[%clk 0:00:21]} 21... Nxe5 {[%clk 0:01:21.7]} 22. Rxe5
{[%clk 0:00:21.9]} 22... Bd7 {[%clk 0:01:19]} 23. Rh5 {[%clk 0:00:20.3]} 23...
Kg8 {[%clk 0:01:10.2]} 24. Qh4 {[%clk 0:00:18.9]} 24... Nf8 {[%clk 0:01:06.4]}
25. Bb3 {[%clk 0:00:16.3]} 25... Re6 {[%clk 0:00:54.5]} 26. Rd1 {[%clk
0:00:15.3]} 26... Rxd6 {[%clk 0:00:52.7]} 27. Ne4 {[%clk 0:00:13.9]} 27... Rg6
{[%clk 0:00:47.1]} 28. Ng5 {[%clk 0:00:13.6]} 28... h6 {[%clk 0:00:43.2]} 29.
Nf3 {[%clk 0:00:13]} 29... Re8 {[%clk 0:00:34.9]} 30. Re5 {[%clk 0:00:06]} 30...
Rge6 {[%clk 0:00:19.4]} 31. Rde1 {[%clk 0:00:05.2]} 31... Rxe5 {[%clk
0:00:18.7]} 32. Rxe5 {[%clk 0:00:05]} 32... Rxe5 {[%clk 0:00:17.9]} 33. Nxe5
{[%clk 0:00:05.9]} 33... Qc7 {[%clk 0:00:16.9]} 34. Qe7 {[%clk 0:00:04.9]} 34...
Ne6 {[%clk 0:00:10.8]} 35. Qxf7+ {[%clk 0:00:04.7]} 35... Kh7 {[%clk 0:00:10.5]}
36. Nxd7 {[%clk 0:00:04.5]} 1-0

[Event "Early-Titled-Tuesday-Blitz-March-19-2024"]
[Site "Chess.com"]
[Date "2024.03.19"]
[Round "4"]
[White "Louis-Paulsen-Fan"]
[Black "chess94cu"]
[Result "0-1"]
[WhiteElo "2282"]
[BlackElo "2632"]
[TimeControl "180+1"]
[EndTime "8:39:55 PDT"]
[Termination "chess94cu won by resignation"]

1. d4 {[%clk 0:03:00.9]} 1... Nf6 {[%clk 0:02:59.2]} 2. Nf3 {[%clk 0:03:01.1]}
2... d6 {[%clk 0:02:58.8]} 3. c4 {[%clk 0:03:01.3]} 3... Nbd7 {[%clk 0:02:59.4]}
4. Bf4 {[%clk 0:03:00.2]} 4... g6 {[%clk 0:02:58.5]} 5. h3 {[%clk 0:03:00.6]}
5... Bg7 {[%clk 0:02:59.1]} 6. Nc3 {[%clk 0:03:00.8]} 6... O-O {[%clk
0:02:59.2]} 7. e3 {[%clk 0:03:01.3]} 7... b6 {[%clk 0:02:58.9]} 8. Be2 {[%clk
0:03:01.3]} 8... Bb7 {[%clk 0:02:59.5]} 9. O-O {[%clk 0:03:01.5]} 9... a6 {[%clk
0:02:56.3]} 10. Rc1 {[%clk 0:02:54.9]} 10... Qe8 {[%clk 0:02:56.5]} 11. d5
{[%clk 0:02:46.3]} 11... h6 {[%clk 0:02:51.3]} 12. Nd4 {[%clk 0:02:40.3]} 12...
e5 {[%clk 0:02:45.7]} 13. dxe6 {[%clk 0:02:40.3]} 13... fxe6 {[%clk 0:02:46.3]}
14. Bh2 {[%clk 0:02:37.5]} 14... e5 {[%clk 0:02:38.9]} 15. Nb3 {[%clk
0:02:30.4]} 15... a5 {[%clk 0:02:36.8]} 16. Nd5 {[%clk 0:02:23.2]} 16... Rc8
{[%clk 0:02:32.4]} 17. Bf3 {[%clk 0:02:15.4]} 17... e4 {[%clk 0:02:26.3]} 18.
Be2 {[%clk 0:02:15.5]} 18... Ne5 {[%clk 0:02:26.2]} 19. Nxf6+ {[%clk 0:01:39]}
19... Rxf6 {[%clk 0:02:23.2]} 20. Nd4 {[%clk 0:01:37.1]} 20... Qe7 {[%clk
0:02:10.2]} 21. a3 {[%clk 0:01:35.6]} 21... Rcf8 {[%clk 0:02:06]} 22. b4 {[%clk
0:01:31]} 22... axb4 {[%clk 0:01:39.7]} 23. axb4 {[%clk 0:01:31.9]} 23... R6f7
{[%clk 0:01:39.6]} 24. c5 {[%clk 0:01:24.5]} 24... bxc5 {[%clk 0:01:26]} 25.
bxc5 {[%clk 0:01:25.4]} 25... dxc5 {[%clk 0:01:26.9]} 26. Nb3 {[%clk 0:01:22.2]}
26... c4 {[%clk 0:01:23.5]} 27. Bxe5 {[%clk 0:01:04.6]} 27... Bxe5 {[%clk
0:00:49.5]} 28. Bxc4 {[%clk 0:01:00.3]} 28... Bd6 {[%clk 0:00:50.2]} 29. Qg4
{[%clk 0:00:50.4]} 29... Kg7 {[%clk 0:00:45.1]} 30. Nd4 {[%clk 0:00:45]} 30...
Bc8 {[%clk 0:00:42.5]} 31. Be6 {[%clk 0:00:41.1]} 31... h5 {[%clk 0:00:38.5]}
32. Qxe4 {[%clk 0:00:34.9]} 32... c5 {[%clk 0:00:37.2]} 33. Qd5 {[%clk
0:00:20.3]} 33... Bb7 {[%clk 0:00:34]} 34. Qb3 {[%clk 0:00:12.1]} 34... cxd4
{[%clk 0:00:29.1]} 35. Bxf7 {[%clk 0:00:12.3]} 35... Rxf7 {[%clk 0:00:30]} 36.
exd4 {[%clk 0:00:12.4]} 36... Qe4 {[%clk 0:00:30.7]} 37. f3 {[%clk 0:00:12.4]}
37... Qxd4+ {[%clk 0:00:29.8]} 38. Kh1 {[%clk 0:00:12.8]} 38... Qf4 {[%clk
0:00:30.2]} 39. Kg1 {[%clk 0:00:10.3]} 39... Qh2+ {[%clk 0:00:27.5]} 40. Kf2
{[%clk 0:00:10.7]} 40... Rxf3+ {[%clk 0:00:26.9]} 41. Ke1 {[%clk 0:00:09]} 41...
Rxb3 {[%clk 0:00:26.4]} 0-1

[Event "Early-Titled-Tuesday-Blitz-March-19-2024"]
[Site "Chess.com"]
[Date "2024.03.19"]
[Round "4"]
[White "RedFirePanda"]
[Black "Matols"]
[Result "0-1"]
[WhiteElo "2529"]
[BlackElo "2359"]
[TimeControl "180+1"]
[EndTime "8:39:56 PDT"]
[Termination "Matols won on time"]

1. d4 {[%clk 0:03:00.9]} 1... d5 {[%clk 0:02:59.4]} 2. Bf4 {[%clk 0:02:59.7]}
2... Nf6 {[%clk 0:02:58.6]} 3. e3 {[%clk 0:02:57.6]} 3... c5 {[%clk 0:02:57.9]}
4. c3 {[%clk 0:02:56.8]} 4... Nc6 {[%clk 0:02:57.2]} 5. Nd2 {[%clk 0:02:55]}
5... Bg4 {[%clk 0:02:56]} 6. Ngf3 {[%clk 0:02:52.7]} 6... e6 {[%clk 0:02:55]} 7.
h3 {[%clk 0:02:52.6]} 7... Bxf3 {[%clk 0:02:53.1]} 8. Nxf3 {[%clk 0:02:52.1]}
8... Be7 {[%clk 0:02:45.3]} 9. Bd3 {[%clk 0:02:47.1]} 9... O-O {[%clk
0:02:43.6]} 10. O-O {[%clk 0:02:46.6]} 10... Rc8 {[%clk 0:02:41.5]} 11. Re1
{[%clk 0:02:43.9]} 11... Ne4 {[%clk 0:02:39.8]} 12. Bxe4 {[%clk 0:02:36.5]}
12... dxe4 {[%clk 0:02:40.7]} 13. Ne5 {[%clk 0:02:36.9]} 13... Nxe5 {[%clk
0:02:32.5]} 14. Bxe5 {[%clk 0:02:37.8]} 14... Bf6 {[%clk 0:02:29.6]} 15. Bg3
{[%clk 0:02:33.2]} 15... Qd5 {[%clk 0:02:26.2]} 16. Qg4 {[%clk 0:02:20.9]} 16...
Qf5 {[%clk 0:02:21]} 17. Qe2 {[%clk 0:02:19]} 17... Rfd8 {[%clk 0:02:17.7]} 18.
Rad1 {[%clk 0:02:13.8]} 18... a6 {[%clk 0:02:09.1]} 19. a3 {[%clk 0:02:10.1]}
19... h5 {[%clk 0:01:59.3]} 20. Rf1 {[%clk 0:02:04.5]} 20... h4 {[%clk
0:01:46.9]} 21. Bh2 {[%clk 0:01:59.8]} 21... Kh7 {[%clk 0:01:38.4]} 22. f3
{[%clk 0:01:58]} 22... exf3 {[%clk 0:01:35.4]} 23. Rxf3 {[%clk 0:01:56.9]} 23...
Qg6 {[%clk 0:01:31.5]} 24. Rdf1 {[%clk 0:01:52.1]} 24... cxd4 {[%clk 0:01:29.8]}
25. exd4 {[%clk 0:01:51]} 25... Rd5 {[%clk 0:01:26.8]} 26. Be5 {[%clk
0:01:43.4]} 26... Bxe5 {[%clk 0:01:24.1]} 27. dxe5 {[%clk 0:01:44.3]} 27... Rc7
{[%clk 0:01:23.3]} 28. Rf4 {[%clk 0:01:21.4]} 28... Qg5 {[%clk 0:00:58.3]} 29.
Re4 {[%clk 0:00:34.5]} 29... Rcd7 {[%clk 0:00:55.4]} 30. Rff4 {[%clk 0:00:19.8]}
30... Rd1+ {[%clk 0:00:49.7]} 31. Rf1 {[%clk 0:00:19.4]} 31... Rxf1+ {[%clk
0:00:41.9]} 32. Qxf1 {[%clk 0:00:20.3]} 32... Qg3 {[%clk 0:00:36]} 33. Rg4
{[%clk 0:00:09.9]} 33... Qxe5 {[%clk 0:00:29.8]} 34. Rxh4+ {[%clk 0:00:10.2]}
34... Kg8 {[%clk 0:00:29.6]} 35. Qf3 {[%clk 0:00:06.6]} 35... Qe1+ {[%clk
0:00:27.9]} 36. Kh2 {[%clk 0:00:04.9]} 36... Qxh4 {[%clk 0:00:28.8]} 37. Qe3
{[%clk 0:00:02.5]} 37... Qf6 {[%clk 0:00:24.6]} 38. Qb6 {[%clk 0:00:01.5]} 38...
Qe5+ {[%clk 0:00:23.4]} 0-1

[Event "Early-Titled-Tuesday-Blitz-March-19-2024"]
[Site "Chess.com"]
[Date "2024.03.19"]
[Round "4"]
[White "Hongjin"]
[Black "BashiqChess"]
[Result "1-0"]
[WhiteElo "2714"]
[BlackElo "2448"]
[TimeControl "180+1"]
[EndTime "8:39:57 PDT"]
[Termination "Hongjin won by resignation"]

1. e4 {[%clk 0:03:00.9]} 1... c6 {[%clk 0:02:58.6]} 2. d4 {[%clk 0:02:59.6]}
2... d5 {[%clk 0:02:59]} 3. exd5 {[%clk 0:03:00.5]} 3... cxd5 {[%clk 0:02:59.9]}
4. Nf3 {[%clk 0:03:01.4]} 4... Nc6 {[%clk 0:02:59.1]} 5. Ne5 {[%clk 0:03:01]}
5... a6 {[%clk 0:02:58.2]} 6. Nxc6 {[%clk 0:03:00.8]} 6... bxc6 {[%clk
0:02:58.4]} 7. Bd3 {[%clk 0:03:01.7]} 7... Nf6 {[%clk 0:02:57.2]} 8. O-O {[%clk
0:03:01.5]} 8... Bg4 {[%clk 0:02:45.6]} 9. f3 {[%clk 0:02:55.9]} 9... Bh5 {[%clk
0:02:46]} 10. Qe1 {[%clk 0:02:56.1]} 10... e6 {[%clk 0:02:44.2]} 11. Qh4 {[%clk
0:02:56.3]} 11... Be7 {[%clk 0:02:33.3]} 12. Bg5 {[%clk 0:02:56]} 12... Bg6
{[%clk 0:01:36.9]} 13. Bxg6 {[%clk 0:02:55.6]} 13... fxg6 {[%clk 0:01:37.8]} 14.
Nd2 {[%clk 0:02:47.7]} 14... O-O {[%clk 0:01:36.3]} 15. Rfe1 {[%clk 0:02:44.7]}
15... Qd7 {[%clk 0:01:19.9]} 16. Qh3 {[%clk 0:02:28.9]} 16... Kf7 {[%clk
0:00:51.4]} 17. Re2 {[%clk 0:02:24.4]} 17... h6 {[%clk 0:00:50.1]} 18. Bh4
{[%clk 0:02:11]} 18... Rfe8 {[%clk 0:00:47.8]} 19. Rae1 {[%clk 0:02:10.2]} 19...
Nh5 {[%clk 0:00:33.9]} 20. Bg3 {[%clk 0:01:34.8]} 20... Nxg3 {[%clk 0:00:26.9]}
21. hxg3 {[%clk 0:01:33.2]} 21... Bf6 {[%clk 0:00:27.4]} 22. Nb3 {[%clk
0:01:30.6]} 22... Re7 {[%clk 0:00:20.3]} 23. c3 {[%clk 0:01:30.4]} 23... Rae8
{[%clk 0:00:17.2]} 24. Nc5 {[%clk 0:01:30.6]} 24... Qd6 {[%clk 0:00:17.3]} 25.
f4 {[%clk 0:01:25.1]} 25... g5 {[%clk 0:00:08.3]} 26. Qh5+ {[%clk 0:01:18.9]}
26... Kg8 {[%clk 0:00:08.5]} 27. fxg5 {[%clk 0:01:04.4]} 27... Bxg5 {[%clk
0:00:09.4]} 28. Qg6 {[%clk 0:01:01.9]} 28... Bf6 {[%clk 0:00:09.4]} 29. Rf1
{[%clk 0:00:55.2]} 29... e5 {[%clk 0:00:09.5]} 30. Nb7 {[%clk 0:00:32.8]} 30...
Qc7 {[%clk 0:00:07.3]} 31. Rxf6 {[%clk 0:00:31.6]} 31... Qxb7 {[%clk 0:00:04.5]}
32. dxe5 {[%clk 0:00:22.7]} 32... Rxe5 {[%clk 0:00:04.3]} 33. Rxe5 {[%clk
0:00:21]} 33... Rxe5 {[%clk 0:00:04]} 34. Rxc6 {[%clk 0:00:20.1]} 34... Qe7
{[%clk 0:00:01.9]} 35. Rc8+ {[%clk 0:00:19.3]} 35... Qf8 {[%clk 0:00:02.1]} 36.
Rxf8+ {[%clk 0:00:19.3]} 36... Kxf8 {[%clk 0:00:03]} 37. Qd6+ {[%clk 0:00:20]}
37... Re7 {[%clk 0:00:03.3]} 38. Qxd5 {[%clk 0:00:20.3]} 1-0

[Event "Early-Titled-Tuesday-Blitz-March-19-2024"]
[Site "Chess.com"]
[Date "2024.03.19"]
[Round "4"]
[White "TimGrutter03"]
[Black "YaWaleriy"]
[Result "0-1"]
[WhiteElo "2555"]
[BlackElo "2429"]
[TimeControl "180+1"]
[EndTime "8:39:57 PDT"]
[Termination "YaWaleriy won on time"]

1. d4 {[%clk 0:03:00.9]} 1... d5 {[%clk 0:02:58.8]} 2. Nc3 {[%clk 0:03:01.3]}
2... Nf6 {[%clk 0:02:57.4]} 3. Bf4 {[%clk 0:03:01.9]} 3... a6 {[%clk 0:02:56.2]}
4. e3 {[%clk 0:03:01.7]} 4... e6 {[%clk 0:02:56]} 5. g4 {[%clk 0:03:01.7]} 5...
c5 {[%clk 0:02:55.4]} 6. g5 {[%clk 0:02:56.9]} 6... Nfd7 {[%clk 0:02:53.4]} 7.
Nf3 {[%clk 0:02:57.4]} 7... Nc6 {[%clk 0:02:53.2]} 8. Qd2 {[%clk 0:02:44.1]}
8... b5 {[%clk 0:02:51.8]} 9. h4 {[%clk 0:02:42.2]} 9... Bb7 {[%clk 0:02:46.5]}
10. Bg2 {[%clk 0:02:36.5]} 10... Qa5 {[%clk 0:02:38.7]} 11. O-O {[%clk
0:02:29.9]} 11... Nb6 {[%clk 0:02:26.4]} 12. dxc5 {[%clk 0:02:07.9]} 12... Bxc5
{[%clk 0:02:20.5]} 13. Qe2 {[%clk 0:01:52]} 13... Nc4 {[%clk 0:02:12.8]} 14. Nd1
{[%clk 0:01:52.2]} 14... O-O {[%clk 0:01:59.3]} 15. c3 {[%clk 0:01:45.1]} 15...
Qd8 {[%clk 0:01:53.2]} 16. b3 {[%clk 0:01:40.6]} 16... Nd6 {[%clk 0:01:51.4]}
17. Nb2 {[%clk 0:01:37.5]} 17... Ne4 {[%clk 0:01:49.2]} 18. Rac1 {[%clk
0:01:35.2]} 18... Bd6 {[%clk 0:01:48.3]} 19. Bxd6 {[%clk 0:01:29.5]} 19... Qxd6
{[%clk 0:01:41.1]} 20. Rfd1 {[%clk 0:01:28.5]} 20... Qe7 {[%clk 0:01:29.1]} 21.
c4 {[%clk 0:01:25.8]} 21... dxc4 {[%clk 0:01:21.5]} 22. bxc4 {[%clk 0:01:24.9]}
22... b4 {[%clk 0:01:16.6]} 23. Nd3 {[%clk 0:01:12.4]} 23... Rfd8 {[%clk
0:01:09.5]} 24. Nf4 {[%clk 0:00:41.6]} 24... Nc3 {[%clk 0:01:02.4]} 25. Rxd8+
{[%clk 0:00:41]} 25... Rxd8 {[%clk 0:01:02.3]} 26. Qb2 {[%clk 0:00:38.7]} 26...
a5 {[%clk 0:00:54]} 27. a3 {[%clk 0:00:36.1]} 27... Qc5 {[%clk 0:00:47.8]} 28.
axb4 {[%clk 0:00:33.1]} 28... axb4 {[%clk 0:00:47.7]} 29. Bf1 {[%clk 0:00:15.9]}
29... Na5 {[%clk 0:00:37.5]} 30. Nd2 {[%clk 0:00:06.8]} 30... e5 {[%clk
0:00:18.5]} 31. Nd3 {[%clk 0:00:06.6]} 31... Nxc4 {[%clk 0:00:11.2]} 32. Nxc4
{[%clk 0:00:02.2]} 32... Qxc4 {[%clk 0:00:11.1]} 33. Nxe5 {[%clk 0:00:01.9]}
33... Qd5 {[%clk 0:00:08.9]} 0-1

[Event "Early-Titled-Tuesday-Blitz-March-19-2024"]
[Site "Chess.com"]
[Date "2024.03.19"]
[Round "4"]
[White "Elnaz_Kaliakhmet"]
[Black "Danny_Billiards"]
[Result "1-0"]
[WhiteElo "2528"]
[BlackElo "2758"]
[TimeControl "180+1"]
[EndTime "8:39:59 PDT"]
[Termination "Elnaz_Kaliakhmet won by resignation"]

1. d4 {[%clk 0:03:00.9]} 1... Nf6 {[%clk 0:02:56.8]} 2. c4 {[%clk 0:03:00.7]}
2... g6 {[%clk 0:02:55.5]} 3. Nc3 {[%clk 0:02:59.7]} 3... Bg7 {[%clk 0:02:56]}
4. e4 {[%clk 0:02:59.5]} 4... d6 {[%clk 0:02:56.6]} 5. h3 {[%clk 0:02:57.4]}
5... O-O {[%clk 0:02:49.3]} 6. Be3 {[%clk 0:02:57.2]} 6... e5 {[%clk 0:02:46.7]}
7. d5 {[%clk 0:02:53.4]} 7... Nfd7 {[%clk 0:02:43.6]} 8. g4 {[%clk 0:02:51]}
8... a5 {[%clk 0:02:42.9]} 9. Nge2 {[%clk 0:02:50.8]} 9... Na6 {[%clk
0:02:42.3]} 10. Ng3 {[%clk 0:02:51]} 10... Nac5 {[%clk 0:02:41.1]} 11. Qd2
{[%clk 0:02:51.3]} 11... a4 {[%clk 0:02:39.4]} 12. O-O-O {[%clk 0:02:49.5]}
12... Nb6 {[%clk 0:02:39.3]} 13. Be2 {[%clk 0:02:38.9]} 13... a3 {[%clk
0:01:38.7]} 14. b3 {[%clk 0:02:37.7]} 14... f5 {[%clk 0:01:34.5]} 15. gxf5
{[%clk 0:02:36.7]} 15... gxf5 {[%clk 0:01:34.9]} 16. exf5 {[%clk 0:02:35.4]}
16... e4 {[%clk 0:01:35.1]} 17. Bd4 {[%clk 0:02:30.2]} 17... Bxd4 {[%clk
0:01:31.1]} 18. Qxd4 {[%clk 0:02:30.7]} 18... Qg5+ {[%clk 0:01:26.2]} 19. Kb1
{[%clk 0:02:25.6]} 19... Bxf5 {[%clk 0:01:26.2]} 20. Nxf5 {[%clk 0:02:24.8]}
20... Qxf5 {[%clk 0:01:24.8]} 21. Rhg1+ {[%clk 0:02:11.1]} 21... Kf7 {[%clk
0:01:23.3]} 22. Qg7+ {[%clk 0:01:25.3]} 22... Ke8 {[%clk 0:01:22]} 23. Bg4
{[%clk 0:01:25.4]} 23... Qxf2 {[%clk 0:00:47.5]} 24. Nb5 {[%clk 0:01:25.3]}
24... Qb2+ {[%clk 0:00:11.8]} 25. Qxb2 {[%clk 0:01:24.2]} 25... axb2 {[%clk
0:00:12.7]} 26. Nxc7+ {[%clk 0:01:20.9]} 26... Ke7 {[%clk 0:00:13.3]} 27. Nxa8
{[%clk 0:01:20.8]} 27... Rxa8 {[%clk 0:00:14.2]} 28. Kxb2 {[%clk 0:01:20.2]}
28... Nd3+ {[%clk 0:00:14.6]} 29. Kb1 {[%clk 0:01:17.8]} 29... Rf8 {[%clk
0:00:08]} 30. Rgf1 {[%clk 0:01:17.6]} 30... Rxf1 {[%clk 0:00:06.5]} 31. Rxf1
{[%clk 0:01:17.3]} 31... Nd7 {[%clk 0:00:07.3]} 32. Bf5 {[%clk 0:01:16.2]} 32...
N7c5 {[%clk 0:00:06.3]} 33. b4 {[%clk 0:01:01.2]} 33... Nxb4 {[%clk 0:00:04.7]}
34. Bxe4 {[%clk 0:00:58.7]} 34... Kd7 {[%clk 0:00:03.1]} 35. Bxh7 {[%clk
0:00:57.8]} 35... Na4 {[%clk 0:00:03.4]} 36. Rf3 {[%clk 0:00:54.7]} 36... Nb6
{[%clk 0:00:03.1]} 37. a3 {[%clk 0:00:53.9]} 37... Nxc4 {[%clk 0:00:02.9]} 38.
Rf7+ {[%clk 0:00:51.4]} 38... Ke8 {[%clk 0:00:02.8]} 39. Rxb7 {[%clk 0:00:50.1]}
39... Nxd5 {[%clk 0:00:03.2]} 40. Bg8 {[%clk 0:00:43.9]} 40... Nce3 {[%clk
0:00:01.8]} 41. Bxd5 {[%clk 0:00:42.5]} 41... Nxd5 {[%clk 0:00:02.7]} 42. h4
{[%clk 0:00:42.1]} 42... Nf4 {[%clk 0:00:03]} 43. a4 {[%clk 0:00:41.5]} 43...
Kd8 {[%clk 0:00:03.5]} 44. a5 {[%clk 0:00:41.1]} 44... Kc8 {[%clk 0:00:03.9]}
45. a6 {[%clk 0:00:41.7]} 45... d5 {[%clk 0:00:04.2]} 46. Rf7 {[%clk 0:00:41.3]}
46... Ne6 {[%clk 0:00:04.1]} 1-0